bitfinex-derivatives/quotes_BTCF0:USTF0_20240913
["timestamp","ask_amount","ask_price","bid_price","bid_amount"]
[1726263691632,0.14075656,60345.0,60338.0,0.36672098]
[1726263691633,0.49716,60344.0,60338.0,0.15882098]
[1726263692149,0.49716,60343.0,60338.0,0.15882098]
[1726263692344,0.082819,60339.0,60338.0,0.15882098]
[1726263692842,0.580019,60339.0,60338.0,0.15882098]
[1726263693046,0.082819,60339.0,60338.0,0.1529]
[1726263693238,0.49404,60345.0,60338.0,0.23572]
[1726263693437,0.082813,60344.0,60338.0,0.23772]
[1726263693836,0.04055301,60343.0,60338.0,0.23772]
[1726263694042,0.082813,60344.0,60338.0,0.23772]
[1726263694245,0.04055301,60343.0,60338.0,0.23772]
[1726263694447,0.082813,60344.0,60338.0,0.23772]
[1726263694646,0.082814,60343.0,60338.0,0.23772]
[1726263695246,0.082814,60343.0,60338.0,0.24072]
[1726263695448,0.1324,60345.0,60338.0,0.1579]
[1726263695649,0.002,60339.0,60338.0,0.24072]
[1726263696051,0.001,60343.0,60339.0,0.082819]
[1726263696252,0.002,60343.0,60339.0,0.082819]
[1726263696652,0.082815,60342.0,60339.0,0.082819]
[1726263698256,0.16500845,60340.0,60339.0,0.087819]
[1726263698449,0.25638875,60340.0,60339.0,0.087819]
[1726263699053,0.25638875,60340.0,60339.0,0.086819]
[1726263699255,0.0913803,60340.0,60339.0,0.086819]
[1726263702357,0.0933803,60340.0,60339.0,0.086819]
[1726263703061,0.0913803,60340.0,60339.0,0.005]
[1726263703362,0.0933803,60340.0,60339.0,0.005]
[1726263704657,0.1761983,60340.0,60339.0,0.005]
[1726263705052,0.084818,60340.0,60339.0,0.005]
[1726263713358,0.17620078,60340.0,60339.0,0.005]
[1726263713758,0.27378267,60340.0,60339.0,0.005]
[1726263713965,0.32461274,60340.0,60339.0,0.005]
[1726263714660,0.17620078,60340.0,60339.0,0.005]
[1726263717571,0.18210639,60340.0,60339.0,0.005]
[1726263720172,0.09072361,60340.0,60339.0,0.005]
[1726263720668,0.17354161,60340.0,60339.0,0.005]
[1726263721459,0.34662522,60340.0,60339.0,0.005]
[1726263722062,0.21409441,60340.0,60339.0,0.005]
[1726263722861,1.22847985,60340.0,60322.0,0.0039]
[1726263723087,0.082835,60328.0,60323.0,0.13610943]
[1726263723365,0.17310033,60327.0,60323.0,0.13610943]
[1726263723572,0.082835,60328.0,60323.0,0.13610943]
[1726263723775,0.082835,60328.0,60324.0,0.3608]
[1726263723964,0.04055712,60327.0,60324.0,0.3608]
[1726263724169,0.04055712,60326.0,60324.0,0.443639]
[1726263724367,0.04055712,60325.0,60324.0,0.443639]
[1726263724568,0.13254409,60326.0,60324.0,0.3608]
[1726263724774,0.04055712,60325.0,60324.0,0.3608]
[1726263725478,0.17310121,60325.0,60324.0,0.3608]
[1726263725776,0.25593921,60325.0,60324.0,0.3608]
[1726263725970,0.25693921,60325.0,60324.0,0.3608]
[1726263726479,0.12439512,60325.0,60324.0,0.3608]
[1726263727263,0.083838,60325.0,60324.0,0.3648]
[1726263728270,0.085838,60325.0,60324.0,0.3648]
[1726263728971,0.086838,60325.0,60324.0,0.3648]
[1726263729269,0.087838,60325.0,60324.0,0.3678]
[1726263729458,0.083838,60325.0,60324.0,0.3678]
[1726263729779,0.088838,60325.0,60324.0,0.3678]
[1726263729977,0.087838,60325.0,60324.0,0.3638]
[1726263730674,0.087838,60325.0,60324.0,0.3608]
[1726263730870,0.087838,60325.0,60324.0,0.3648]
[1726263732166,0.086838,60325.0,60324.0,0.3648]
[1726263732367,0.086838,60325.0,60324.0,0.3608]
[1726263732674,0.086838,60325.0,60324.0,0.3658]
[1726263733266,0.086838,60325.0,60324.0,0.3648]
[1726263735276,0.12739866,60325.0,60324.0,0.3648]
[1726263737479,0.1782387,60325.0,60324.0,0.3648]
[1726263738177,0.1782387,60325.0,60324.0,0.004]
[1726263738387,0.12739866,60325.0,60324.0,0.004]
[1726263738578,0.12739866,60325.0,60324.0,0.3648]
[1726263740178,0.21902463,60325.0,60324.0,0.3648]
[1726263740384,0.25958529,60325.0,60324.0,0.3648]
[1726263741287,0.12739866,60325.0,60324.0,0.3648]
[1726263741493,0.25958529,60325.0,60324.0,0.3648]
[1726263741985,0.12739866,60325.0,60324.0,0.3648]
[1726263742686,0.25958529,60325.0,60324.0,0.3648]
[1726263743395,0.086838,60325.0,60324.0,0.3648]
[1726263745083,0.086838,60325.0,60324.0,0.004]
[1726263745285,0.086838,60325.0,60324.0,0.3648]
[1726263748587,0.086838,60325.0,60324.0,0.004]
[1726263748793,0.086838,60325.0,60324.0,0.3648]
[1726263749588,0.004,60325.0,60324.0,0.44764]
[1726263749978,0.3608,60333.0,60328.0,0.082833]
[1726263749979,0.21501763,60331.0,60328.0,0.082833]
[1726263750185,0.04056038,60330.0,60329.0,0.082833]
[1726263750381,0.09139973,60330.0,60329.0,0.082833]
[1726263750589,0.16545423,60330.0,60329.0,0.082833]
[1726263750790,0.09139973,60330.0,60329.0,0.082833]
[1726263751392,0.25685396,60330.0,60329.0,0.082833]
[1726263752196,0.25985328,60330.0,60329.0,0.083833]
[1726263752496,0.26185328,60330.0,60329.0,0.083833]
[1726263752798,0.09339905,60330.0,60329.0,0.083833]
[1726263753291,0.09239905,60330.0,60329.0,0.091833]
[1726263753498,0.16661749,60330.0,60329.0,0.091833]
[1726263753683,0.09239905,60330.0,60329.0,0.091833]
[1726263753888,0.25801654,60330.0,60329.0,0.092833]
[1726263754083,0.25800856,60330.0,60329.0,0.092833]
[1726263754293,0.25800856,60330.0,60329.0,0.453633]
[1726263754488,0.09239107,60330.0,60329.0,0.453633]
[1726263754684,0.09139107,60330.0,60329.0,0.450633]
[1726263755499,0.09239107,60330.0,60329.0,0.4574396]
[1726263756089,0.25800856,60330.0,60329.0,0.4574396]
[1726263756395,0.09539107,60330.0,60329.0,0.4604396]
[1726263756694,0.09239107,60330.0,60329.0,0.4614396]
[1726263757287,0.001,60330.0,60329.0,0.4624396]
[1726263757893,0.13238356,60337.0,60329.0,1.4738866]
[1726263758089,0.00835996,60347.0,60336.0,0.3608]
[1726263758290,0.082815,60342.0,60339.0,0.3608]
[1726263759202,0.89851434,60341.0,60330.0,0.3608]
[1726263759399,0.08283,60331.0,60330.0,0.3608]
[1726263759602,0.49728,60330.0,60316.0,0.3608]
[1726263759797,0.3608,60326.0,60316.0,0.36677035]
[1726263760196,0.082849,60317.0,60316.0,0.00597035]
[1726263760399,0.3608,60317.0,60308.0,0.215662]
[1726263760605,0.3608,60311.0,60308.0,0.1387045]
[1726263762206,0.3608,60311.0,60308.0,0.0059045]
[1726263762394,0.3608,60311.0,60305.0,0.212766]
[1726263762801,0.3608,60311.0,60308.0,0.01]
[1726263763006,0.3618,60311.0,60308.0,0.019]
[1726263763302,0.08286,60309.0,60308.0,0.019]
[1726263763702,0.44366,60309.0,60308.0,0.019]
[1726263764509,0.44366,60309.0,60308.0,0.01]
[1726263765506,1.5421,60309.0,60308.0,0.019]
[1726263766116,1.5411,60309.0,60308.0,0.012]
[1726263766718,1.5451,60309.0,60308.0,0.002]
[1726263767219,1.5451,60309.0,60308.0,0.003]
[1726263767419,0.9451,60309.0,60308.0,0.003]
[1726263767620,0.95099087,60309.0,60308.0,0.001]
[1726263768823,0.082866,60305.0,60301.0,0.082871]
[1726263769017,0.3608,60302.0,60301.0,0.082871]
[1726263770920,0.3618,60302.0,60301.0,0.007]
[1726263775618,0.3618,60302.0,60301.0,0.089871]
[1726263784131,0.3618,60302.0,60301.0,0.007]
[1726263785136,0.44467,60302.0,60301.0,0.007]
[1726263794940,0.08387,60302.0,60301.0,0.007]
[1726263795141,0.44467,60302.0,60301.0,0.007]
[1726263797757,0.08387,60302.0,60301.0,0.007]
[1726263797953,0.44467,60302.0,60301.0,0.007]
[1726263798154,0.08387,60302.0,60301.0,0.007]
[1726263798351,0.44467,60302.0,60301.0,0.007]
[1726263801248,0.44467,60302.0,60301.0,0.089871]
[1726263801249,0.3618,60302.0,60301.0,0.089871]
[1726263808259,0.40237794,60302.0,60301.0,0.089871]
[1726263810055,0.3618,60302.0,60301.0,0.089871]
[1726263810245,0.48524828,60302.0,60301.0,0.007]
[1726263810446,0.44467,60302.0,60301.0,0.007]
[1726263812056,0.3618,60302.0,60301.0,0.007]
[1726263816852,0.3618,60302.0,60301.0,0.089871]
[1726263818659,0.21541637,60318.0,60301.0,1.10452]
[1726263818660,0.3608,60311.0,60301.0,1.10452]
[1726263818862,0.3608,60318.0,60317.0,0.082849]
[1726263819055,0.3608,60318.0,60305.0,0.04932337]
[1726263819056,0.3608,60321.0,60320.0,0.082845]
[1726263821061,0.3608,60321.0,60320.0,0.580205]
[1726263821262,0.3608,60333.0,60320.0,1.180205]
[1726263821455,0.3608,60333.0,60327.0,0.082836]
[1726263821456,0.3608,60328.0,60327.0,0.082836]
[1726263822361,0.7216,60328.0,60327.0,0.082836]
[1726263822562,0.7256,60328.0,60327.0,0.083836]
[1726263822777,0.7296,60328.0,60327.0,0.083836]
[1726263822961,0.7296,60328.0,60327.0,0.581116]
[1726263823662,0.008,60328.0,60327.0,1.181116]
[1726263823864,0.3688,60328.0,60327.0,1.181116]
[1726263824165,0.008,60328.0,60327.0,1.181116]
[1726263824362,0.003,60328.0,60327.0,1.181116]
[1726263824553,0.003,60328.0,60327.0,1.18717194]
[1726263825562,0.04356144,60328.0,60327.0,1.18717194]
[1726263826295,0.003,60328.0,60327.0,1.18717194]
[1726263829771,0.003,60328.0,60327.0,0.08989194]
[1726263831162,0.003,60328.0,60327.0,1.18717194]
[1726263832577,0.003,60328.0,60327.0,0.08989194]
[1726263834269,0.003,60328.0,60327.0,0.17272794]
[1726263836174,0.003,60328.0,60327.0,0.08989194]
[1726263840779,0.003,60328.0,60327.0,1.18717194]
[1726263841578,0.003,60328.0,60327.0,0.58717194]
[1726263842281,0.003,60328.0,60327.0,0.08989194]
[1726263843278,0.003,60328.0,60327.0,0.17272794]
[1726263853285,0.7246,60328.0,60327.0,0.17272794]
[1726263858991,0.7246,60328.0,60327.0,0.08989194]
[1726263862691,0.76516517,60328.0,60327.0,0.08989194]
[1726263867007,0.76516593,60328.0,60327.0,0.08989194]
[1726263869291,1.82188,60328.0,60327.0,0.08989194]
[1726263869694,1.86244651,60328.0,60327.0,0.083836]
[1726263869888,1.86244651,60328.0,60315.0,0.0039]
[1726263869889,0.082837,60326.0,60315.0,0.0039]
[1726263870097,0.082837,60326.0,60315.0,0.082852]
[1726263870098,0.85409079,60316.0,60315.0,0.082852]
[1726263870292,0.76216651,60316.0,60315.0,0.082852]
[1726263870491,0.89455762,60316.0,60315.0,0.082852]
[1726263870693,0.7216,60316.0,60315.0,0.082852]
[1726263871291,1.819,60316.0,60315.0,0.082852]
[1726263871487,1.85957883,60316.0,60315.0,0.082852]
[1726263872095,1.85957883,60316.0,60309.0,0.00607784]
[1726263872300,0.3608,60310.0,60303.0,0.082868]
[1726263872490,0.3608,60304.0,60303.0,0.082868]
[1726263873503,0.3608,60304.0,60303.0,0.110868]
[1726263874293,0.3608,60304.0,60303.0,0.103868]
[1726263874294,0.3618,60304.0,60303.0,0.103868]
[1726263875094,0.3618,60304.0,60303.0,0.089868]
[1726263875790,0.3628,60304.0,60303.0,0.088868]
[1726263876399,0.3686253,60304.0,60303.0,0.088868]
[1726263877609,1.5489723,60304.0,60291.0,0.0039]
[1726263877795,1.5489723,60304.0,60286.0,0.0654]
[1726263877796,0.7216,60292.0,60286.0,0.0654]
[1726263877996,0.3608,60287.0,60286.0,0.15431802]
[1726263878705,0.3608,60287.0,60286.0,0.148292]
[1726263879702,0.3608,60287.0,60286.0,0.155292]
[1726263880311,0.3618,60287.0,60286.0,0.169292]
[1726263888599,0.3618,60287.0,60286.0,0.103892]
[1726263893917,0.36760569,60287.0,60286.0,0.103892]
[1726263898515,0.72840569,60287.0,60286.0,0.103892]
[1726263899009,0.7226,60287.0,60286.0,0.103892]
[1726263906126,0.7226,60287.0,60286.0,0.021]
[1726263908924,0.805491,60287.0,60286.0,0.021]
[1726263914421,0.84608505,60287.0,60286.0,0.021]
[1726263915726,0.89696694,60287.0,60286.0,0.021]
[1726263916431,0.95642203,60287.0,60286.0,0.021]
[1726263916622,1.13865194,60287.0,60286.0,0.021]
[1726263916933,1.07919685,60287.0,60286.0,0.021]
[1726263917133,0.89696694,60287.0,60286.0,0.021]
[1726263917431,0.89796694,60287.0,60286.0,0.014]
[1726263917632,0.082892,60286.0,60283.0,0.082895]
[1726263917842,0.7216,60284.0,60283.0,0.082895]
[1726263918137,0.81307594,60284.0,60283.0,0.082895]
[1726263918730,0.89597094,60284.0,60283.0,0.082895]
[1726263918929,0.082897,60282.0,60281.0,0.00603967]
[1726263919126,0.082897,60282.0,60275.0,0.082907]
[1726263919127,0.082902,60279.0,60275.0,0.082907]
[1726263919322,0.082902,60279.0,60276.0,0.082905]
[1726263919323,0.48429605,60279.0,60276.0,0.082905]
[1726263919524,0.48429605,60279.0,60277.0,0.082904]
[1726263919525,0.40139405,60279.0,60277.0,0.082904]
[1726263919732,0.40139405,60279.0,60278.0,0.150803]
[1726263920627,0.40139405,60279.0,60278.0,0.154803]
[1726263920932,0.45228046,60279.0,60278.0,0.154803]
[1726263921130,0.40139405,60279.0,60278.0,0.150803]
[1726263921431,0.45228045,60279.0,60278.0,0.15975819]
[1726263921739,0.40139405,60279.0,60278.0,0.09185819]
[1726263921930,0.40239405,60279.0,60278.0,0.10185819]
[1726263922722,0.3618,60279.0,60278.0,0.10185819]
[1726263930931,0.40239726,60279.0,60278.0,0.10185819]
[1726263932633,0.3618,60279.0,60278.0,0.10185819]
[1726263932844,0.40239608,60279.0,60278.0,0.10185819]
[1726263933239,0.40239594,60279.0,60278.0,0.10185819]
[1726263937245,0.3618,60279.0,60278.0,0.10185819]
[1726263942063,0.3618,60279.0,60278.0,0.01895519]
[1726263942256,0.001,60279.0,60278.0,0.01895519]
[1726263942659,0.3618,60279.0,60278.0,0.01895519]
[1726263945066,0.001,60279.0,60278.0,0.01895519]
[1726263945266,0.3618,60279.0,60278.0,0.01895519]
[1726263945767,0.001,60279.0,60278.0,0.10185819]
[1726263947769,0.001,60279.0,60278.0,0.01895519]
[1726263953065,0.04159622,60279.0,60278.0,0.01895519]
[1726263953872,0.001,60279.0,60278.0,0.01895519]
[1726263954073,0.083893,60279.0,60278.0,0.01895519]
[1726263954276,0.1244888,60279.0,60278.0,0.01895519]
[1726263956260,0.0415958,60279.0,60278.0,0.01895519]
[1726263957966,0.0415962,60279.0,60278.0,0.01895519]
[1726263958877,0.001,60279.0,60278.0,0.01895519]
[1726263959172,0.0415962,60279.0,60278.0,0.01895519]
[1726263959683,0.05188343,60279.0,60278.0,0.01895519]
[1726263959864,0.09247963,60279.0,60278.0,0.01895519]
[1726263960065,0.001,60279.0,60278.0,0.01895519]
[1726263962463,0.001,60279.0,60278.0,0.10185019]
[1726263966173,0.001,60279.0,60278.0,0.01895519]
[1726263968276,0.04159543,60279.0,60278.0,0.01895519]
[1726263968673,0.001,60279.0,60278.0,0.01895519]
[1726263968980,0.09247927,60279.0,60278.0,0.01895519]
[1726263969184,0.04159543,60279.0,60278.0,0.01895519]
[1726263971189,0.04159525,60279.0,60278.0,0.01895519]
[1726263975184,0.001,60279.0,60278.0,0.01895519]
[1726263976291,0.7226,60279.0,60278.0,0.01895519]
[1726263982382,0.001,60279.0,60278.0,0.01895519]
[1726263983683,0.09247909,60279.0,60278.0,0.01895519]
[1726263983988,0.04159545,60279.0,60278.0,0.01895519]
[1726263984187,0.09247561,60279.0,60278.0,0.01895519]
[1726263984379,0.24173775,60279.0,60278.0,0.01895519]
[1726263984780,0.09247561,60279.0,60278.0,0.01895519]
[1726263984979,0.04159545,60279.0,60278.0,0.01895519]
[1726263985798,0.0415939,60279.0,60278.0,0.01895519]
[1726263990187,0.001,60279.0,60278.0,0.01895519]
[1726264006308,0.12448846,60279.0,60278.0,0.01895519]
[1726264006803,0.48528846,60279.0,60278.0,0.01895519]
[1726264008006,0.48528846,60279.0,60278.0,0.013]
[1726264008007,0.56818146,60279.0,60278.0,0.013]
[1726264008308,0.53617338,60279.0,60278.0,0.013]
[1726264008699,1.69331403,60279.0,60278.0,0.013]
[1726264009001,1.81608329,60279.0,60278.0,0.013]
[1726264009306,1.69331574,60279.0,60278.0,0.013]
[1726264009506,1.8756181,60279.0,60278.0,0.013]
[1726264009708,1.69331574,60279.0,60278.0,0.013]
[1726264010106,1.27561999,60279.0,60278.0,0.013]
[1726264010306,1.73914154,60279.0,60266.0,0.0039]
[1726264010501,1.73914154,60279.0,60263.0,0.00986481]
[1726264010502,0.7216,60267.0,60263.0,0.00986481]
[1726264010707,0.082914,60264.0,60263.0,0.00596481]
[1726264010905,0.082917,60262.0,60259.0,0.08292]
[1726264011105,0.04059546,60261.0,60259.0,0.08292]
[1726264011414,0.3608,60264.0,60259.0,0.08292]
[1726264011626,0.04060507,60263.0,60259.0,0.08292]
[1726264011805,0.3608,60261.0,60259.0,0.08292]
[1726264012005,0.04060507,60260.0,60257.0,0.00598183]
[1726264012311,0.073921,60259.0,60254.0,0.082927]
[1726264012509,0.3608,60255.0,60254.0,0.082927]
[1726264013027,0.3608,60255.0,60244.0,0.91212]
[1726264013028,1.49928926,60255.0,60244.0,0.00152]
[1726264013203,0.082917,60262.0,60239.0,0.0039]
[1726264013204,0.068947,60240.0,60239.0,0.0039]
[1726264013408,0.3608,60240.0,60239.0,0.082948]
[1726264013714,0.0039,60253.0,60239.0,0.0060632]
[1726264013912,0.4815,60254.0,60237.0,0.0649]
[1726264013913,0.057933,60251.0,60245.0,0.3608]
[1726264014105,0.057933,60251.0,60244.0,0.082941]
[1726264014107,0.3608,60249.0,60244.0,0.082941]
[1726264014302,0.057933,60251.0,60244.0,0.082941]
[1726264015613,0.058933,60251.0,60244.0,0.094941]
[1726264016113,0.059933,60251.0,60244.0,0.094941]
[1726264017113,0.3628,60251.0,60244.0,0.012]
[1726264017414,0.3628,60251.0,60246.0,0.082939]
[1726264017611,0.3628,60251.0,60244.0,0.012]
[1726264017799,0.082939,60246.0,60244.0,0.01801515]
[1726264018004,0.3628,60251.0,60244.0,0.01801515]
[1726264018005,0.44374,60245.0,60244.0,0.012]
[1726264018205,0.3608,60245.0,60244.0,0.012]
[1726264018608,0.3608,60245.0,60242.0,0.00582741]
[1726264018818,0.065,60249.0,60240.0,0.3608]
[1726264019314,0.065,60249.0,60241.0,0.11]
[1726264019515,0.00284,60251.0,60245.0,0.08294]
[1726264019516,0.002,60251.0,60245.0,0.08294]
[1726264019713,0.001,60251.0,60245.0,0.08294]
[1726264020212,0.444569,60253.0,60246.0,0.0591]
[1726264020415,0.443729,60253.0,60246.0,0.0591]
[1726264020616,0.001,60249.0,60246.0,0.0591]
[1726264021409,0.001,60249.0,60246.0,0.142039]
[1726264021914,0.002,60249.0,60246.0,0.142039]
[1726264022415,0.001,60249.0,60246.0,0.0591]
[1726264022607,0.4708,60247.0,60238.0,0.0609]
[1726264022810,0.3608,60239.0,60238.0,0.0609]
[1726264023423,0.082947,60241.0,60238.0,0.0609]
[1726264023715,0.3608,60240.0,60238.0,0.066833]
[1726264024214,0.001,60239.0,60238.0,0.005933]
[1726264024413,0.001,60239.0,60235.0,0.082953]
[1726264025922,0.444747,60240.0,60235.0,0.082953]
[1726264026221,0.444747,60240.0,60235.0,0.08897381]
[1726264026518,0.001,60239.0,60235.0,0.08897381]
[1726264026722,0.002,60239.0,60235.0,0.08897381]
[1726264026925,0.002,60239.0,60235.0,0.00602081]
[1726264026926,0.4708,60236.0,60235.0,0.00602081]
[1726264027106,0.082956,60234.0,60228.0,0.1262]
[1726264027315,0.3608,60229.0,60228.0,0.1262]
[1726264028618,0.3608,60229.0,60228.0,0.13225467]
[1726264029212,0.3608,60229.0,60228.0,0.00605467]
[1726264029416,0.3608,60229.0,60227.0,0.082964]
[1726264029813,0.3618,60229.0,60227.0,0.08900263]
[1726264030411,0.001,60229.0,60227.0,0.08900263]
[1726264030617,0.001,60229.0,60228.0,0.082963]
[1726264031825,0.001,60229.0,60228.0,0.00582216]
[1726264032129,0.001,60229.0,60225.0,0.11]
[1726264032817,0.443761,60230.0,60223.0,0.08297]
[1726264033022,0.443761,60230.0,60225.0,0.11]
[1726264033023,0.001,60229.0,60225.0,0.11]
[1726264033224,0.444763,60229.0,60225.0,0.11]
[1726264033429,0.443763,60229.0,60225.0,0.11]
[1726264033620,0.444763,60229.0,60225.0,0.11]
[1726264034030,0.444763,60229.0,60223.0,0.08297]
[1726264034217,0.444763,60229.0,60221.0,0.12945707]
[1726264034422,0.445763,60229.0,60221.0,0.12945707]
[1726264034928,0.002,60229.0,60224.0,0.082968]
[1726264035916,0.001,60229.0,60224.0,0.082968]
[1726264036135,0.002,60229.0,60221.0,0.12945707]
[1726264036427,0.082964,60228.0,60221.0,0.12945707]
[1726264036926,0.082964,60228.0,60222.0,0.082972]
[1726264037229,0.002,60229.0,60226.0,0.082966]
[1726264037614,0.001,60229.0,60226.0,0.082966]
[1726264037920,0.001,60229.0,60221.0,0.12945707]
[1726264037921,0.001,60228.0,60221.0,0.17878044]
[1726264038322,0.001,60228.0,60223.0,0.08297]
[1726264038522,0.001,60229.0,60224.0,0.082969]
[1726264039025,0.083963,60229.0,60222.0,0.04932337]
[1726264039328,0.083963,60229.0,60221.0,0.26175344]
[1726264039329,0.001,60228.0,60221.0,0.26175344]
[1726264039527,0.001,60228.0,60227.0,0.082965]
[1726264039724,0.082952,60237.0,60230.0,0.08296]
[1726264040315,0.11,60232.0,60227.0,0.36232]
[1726264040526,0.001,60228.0,60226.0,0.082965]
[1726264040925,0.002,60228.0,60226.0,0.082965]
[1726264041231,0.001,60228.0,60226.0,0.082965]
[1726264041528,0.3608,60230.0,60226.0,0.082965]
[1726264042630,0.11590078,60237.0,60228.0,0.082963]
[1726264042826,0.11590078,60237.0,60230.0,0.04904324]
[1726264042827,0.192952,60237.0,60230.0,0.04904324]
[1726264043134,0.192952,60237.0,60229.0,0.082961]
[1726264043321,0.001,60230.0,60229.0,0.082961]
[1726264043526,0.001,60230.0,60229.0,0.13200424]
[1726264043934,0.3608,60233.0,60229.0,0.04904324]
[1726264044127,0.3608,60233.0,60227.0,0.3608]
[1726264044128,0.3608,60233.0,60228.0,0.04904324]
[1726264044429,0.4708,60233.0,60228.0,0.04904324]
[1726264044638,0.3608,60233.0,60228.0,0.04904324]
[1726264044834,0.3608,60233.0,60230.0,0.04904324]
[1726264045135,0.111,60237.0,60229.0,0.04904324]
[1726264045320,0.111,60237.0,60231.0,0.04904324]
[1726264045321,0.192952,60237.0,60231.0,0.04904324]
[1726264046037,0.001,60233.0,60231.0,0.04904324]
[1726264046223,0.001,60233.0,60232.0,0.04904324]
[1726264046420,0.001,60233.0,60230.0,0.082961]
[1726264046621,0.193952,60237.0,60230.0,0.14851867]
[1726264046829,0.193952,60237.0,60233.0,0.04913369]
[1726264047028,0.001,60237.0,60233.0,0.04913369]
[1726264047231,0.3608,60238.0,60235.0,0.04913369]
[1726264047429,0.3608,60238.0,60236.0,0.04913369]
[1726264047830,0.002,60237.0,60236.0,0.04913369]
[1726264048228,0.002,60237.0,60236.0,0.04913835]
[1726264048434,0.3608,60238.0,60237.0,0.082951]
[1726264048633,0.008,60238.0,60237.0,0.443751]
[1726264049337,0.008,60238.0,60237.0,0.941791]
[1726264049836,0.008,60238.0,60237.0,1.541791]
[1726264049837,0.002,60238.0,60237.0,1.541791]
[1726264050028,0.3608,60249.0,60246.0,0.082939]
[1726264050338,0.0039,60257.0,60246.0,0.3608]
[1726264050531,0.082921,60259.0,60252.0,0.082929]
[1726264050735,0.08877061,60259.0,60253.0,0.0491009]
[1726264051037,0.0039,60266.0,60261.0,0.082918]
[1726264051038,0.3608,60264.0,60261.0,0.082918]
[1726264051234,0.3608,60264.0,60258.0,0.3608]
[1726264051235,0.4708,60270.0,60258.0,0.3608]
[1726264051431,0.4708,60270.0,60258.0,0.4099009]
[1726264051632,0.4708,60270.0,60263.0,0.082915]
[1726264051827,0.4708,60270.0,60265.0,0.082912]
[1726264052131,0.4708,60270.0,60266.0,0.0599]
[1726264052437,0.11,60273.0,60266.0,0.0599]
[1726264052635,0.11,60273.0,60270.0,0.082905]
[1726264052942,0.082893,60279.0,60270.0,0.082905]
[1726264053135,0.11,60277.0,60271.0,0.0603]
[1726264053637,0.003,60273.0,60271.0,0.0603]
[1726264054035,0.003,60273.0,60270.0,0.082905]
[1726264054036,0.003,60273.0,60265.0,0.0642]
[1726264054037,0.003,60273.0,60265.0,0.0039]
[1726264054038,0.082903,60272.0,60265.0,0.0039]
[1726264054340,0.082903,60272.0,60264.0,0.082913]
[1726264054341,0.3608,60266.0,60264.0,0.082913]
[1726264054739,0.3608,60266.0,60260.0,0.082918]
[1726264055234,0.3608,60266.0,60261.0,0.082918]
[1726264056842,0.3628,60266.0,60261.0,0.082918]
[1726264057139,0.3638,60266.0,60261.0,0.090918]
[1726264057334,0.3638,60266.0,60261.0,0.008]
[1726264057641,0.3648,60266.0,60261.0,0.008]
[1726264058253,0.004,60266.0,60261.0,0.008]
[1726264059344,0.194,60266.0,60261.0,0.008]
[1726264059538,0.443717,60262.0,60261.0,0.008]
[1726264060643,0.443717,60262.0,60253.0,0.0678]
[1726264060644,0.074928,60254.0,60253.0,0.0039]
[1726264060837,0.082936,60249.0,60245.0,0.00605848]
[1726264061034,0.3608,60246.0,60240.0,0.0039]
[1726264061239,0.3608,60242.0,60238.0,0.0491009]
[1726264061442,0.082948,60239.0,60238.0,0.0491009]
[1726264061648,0.082948,60239.0,60231.0,0.0039]
[1726264061838,0.3608,60235.0,60231.0,0.0039]
[1726264063245,0.001,60235.0,60231.0,0.0049]
[1726264063545,0.003,60235.0,60231.0,0.0049]
[1726264065839,0.085954,60235.0,60231.0,0.0049]
[1726264069644,0.082958,60232.0,60231.0,0.0049]
[1726264069841,0.443758,60232.0,60231.0,0.001]
[1726264070144,0.3608,60232.0,60231.0,0.001]
[1726264071053,0.3618,60232.0,60231.0,0.001]
[1726264071250,0.001,60232.0,60231.0,0.001]
[1726264071451,0.3618,60232.0,60231.0,0.001]
[1726264072052,0.3638,60232.0,60231.0,0.001]
[1726264073551,0.003,60232.0,60231.0,0.001]
[1726264075250,0.193,60232.0,60231.0,0.001]
[1726264077846,0.275958,60232.0,60231.0,0.001]
[1726264078747,0.774038,60232.0,60231.0,0.001]
[1726264078949,0.003,60232.0,60231.0,0.001]
[1726264079747,0.003,60232.0,60231.0,0.083959]
[1726264087457,0.003,60232.0,60231.0,0.140959]
[1726264089653,0.003,60232.0,60231.0,0.501759]
[1726264096364,0.003,60232.0,60231.0,0.56722686]
[1726264097757,0.003,60232.0,60231.0,0.61647837]
[1726264097950,0.003,60232.0,60231.0,0.501759]
[1726264099561,0.003,60232.0,60231.0,0.49401258]
[1726264099875,0.113,60232.0,60231.0,0.444759]
[1726264101664,0.113,60232.0,60231.0,0.49401258]
[1726264101859,0.113,60232.0,60231.0,0.444759]
[1726264102658,0.113,60232.0,60231.0,0.49401258]
[1726264102872,0.113,60232.0,60231.0,0.444759]
[1726264104063,0.003,60232.0,60231.0,0.444759]
[1726264108972,0.003,60232.0,60231.0,0.527718]
[1726264112268,0.003,60232.0,60231.0,0.57700602]
[1726264112574,0.003,60232.0,60231.0,0.527718]
[1726264112766,0.003,60232.0,60231.0,0.57700602]
[1726264114268,0.003,60232.0,60231.0,0.527718]
[1726264117775,0.003,60232.0,60231.0,0.444759]
[1726264126584,0.003,60232.0,60231.0,0.083959]
[1726264131170,0.003,60232.0,60231.0,0.444759]
[1726264135587,0.003,60232.0,60231.0,0.083959]
[1726264148594,0.003,60232.0,60231.0,0.13327822]
[1726264151089,0.003,60232.0,60231.0,0.083959]
[1726264162324,0.003,60232.0,60231.0,0.13329563]
[1726264162499,0.003,60232.0,60231.0,0.083959]
[1726264186111,0.003,60232.0,60231.0,0.140559]
[1726264189106,0.003,60232.0,60231.0,0.20635258]